fUSD/lending_fUSD_20260324
["ID","MTS","AMOUNT","RATE_DAILY","PERIOD"]
[408823721,1774310950425,-882.0,0.00012416,2]
[408823742,1774311032005,-57.11,0.00012416,2]
[408823744,1774311032015,-250.0,0.00013,2]
[408823746,1774311032024,-300.0,0.00013657,2]
[408823748,1774311032033,-39.74802986,0.00013657,2]
[408823753,1774311032064,-321.0,0.00013657,2]
[408823802,1774311038898,-839.25197014,0.00013657,2]
[408823803,1774311038908,-1417.45358651,0.00013658,2]
[408823804,1774311038931,-123.54162314,0.00013658,2]
[408823805,1774311038940,-250.0,0.00013658,2]
[408823806,1774311038950,-5000.0,0.00013658,2]
[408823807,1774311038959,-162.26,0.000137,2]
[408823808,1774311038969,-512.0,0.00014,2]
[408823809,1774311038978,-500.0,0.0001435,2]
[408823810,1774311038987,-501.344434,0.0001435,2]
[408823811,1774311039001,-167.53586098,0.0001435,2]
[408823812,1774311039011,-502.42549594,0.0001435,2]
[408823813,1774311039021,-500.0,0.0001435,2]
[408823814,1774311039031,-9859.72,0.00014411,2]
[408823815,1774311039040,-1852.42,0.00014489,2]
[408823816,1774311039051,-200.0,0.00014489,2]
[408823817,1774311039060,-1742.31,0.00014489,2]
[408823818,1774311039070,-1116.6,0.00014489,2]
[408823819,1774311039080,-1005.62,0.00014489,2]
[408823820,1774311039089,-150.0,0.000145,2]
[408823821,1774311039099,-500.0,0.0001454,2]
[408823822,1774311039108,-500.0,0.0001455,2]
[408823823,1774311039118,-3240.0,0.00014697,2]
[408823824,1774311039127,-374.9,0.0001484,2]
[408823825,1774311039137,-1000.0,0.00014898,2]
[408823826,1774311039146,-341.0,0.00014927,2]
[408823827,1774311039156,-150.0,0.00014978,2]
[408823828,1774311039165,-500.0,0.00014979,2]
[408823829,1774311039175,-500.0,0.00014979,2]
[408823830,1774311039185,-500.0,0.00014979,2]
[408823831,1774311039194,-500.0,0.00014979,2]
[408823832,1774311039204,-500.0,0.00014979,2]
[408823833,1774311039215,-500.0,0.00014979,2]
[408823834,1774311039226,-500.0,0.00014979,2]
[408823835,1774311039236,-156.86,0.00014982,2]
[408823836,1774311039246,-169.0,0.00015023,2]
[408823837,1774311039256,-412.4667415,0.00015023,2]
[408823838,1774311039266,-1680.0,0.00015023,2]
[408823839,1774311039275,-968.0,0.00015027,2]
[408823840,1774311039285,-269.0,0.00015027,2]
[408823841,1774311039295,-1000.0,0.00015309,2]
[408823842,1774311039304,-2456.36,0.0001531,2]
[408823843,1774311039314,-150.99,0.0001531,2]
[408823844,1774311039324,-19999.99,0.0001531,2]
[408823845,1774311039332,-6585.65584449,0.0001531,2]
[408823846,1774311039349,-552.93113016,0.0001531,2]
[408823847,1774311039361,-2861.40302535,0.0001531,2]
[408823848,1774311039371,-2131.21006123,0.0001531,2]
[408823849,1774311039382,-611.5582176,0.0001531,2]
[408823851,1774311040189,-5533.0,0.0001531,2]
[408823852,1774311040327,-1075.10172117,0.0001531,2]
[408823853,1774311040337,-300.0,0.000154,5]
[408823854,1774311040347,-400.0,0.000154,5]
[408823855,1774311040357,-200.0,0.000154,5]
[408823856,1774311040366,-64.37158447,0.00015446,2]
[408823857,1774311040378,-410.06672426,0.00015446,2]
[408823858,1774311040387,-500.0,0.00015453,2]
[408823859,1774311040397,-1097.0,0.00015453,2]
[408823860,1774311040406,-233.0,0.00015453,2]
[408823861,1774311040415,-159.52048544,0.00015453,2]
[408823862,1774311040426,-313.29951456,0.00015453,2]
[408823863,1774311040435,-1034.75888106,0.00015453,2]
[408823864,1774311040447,-8965.23111894,0.00015453,2]
[408823865,1774311040456,-1030.97,0.00015453,2]
[408823866,1774311040466,-499.99,0.00015453,2]
[408823867,1774311040475,-600.0,0.000155,5]
[408823868,1774311040485,-800.0,0.000155,5]
[408823869,1774311040495,-400.0,0.000155,5]
[408823870,1774311040504,-1000.0,0.000156,5]
[408823871,1774311040513,-1200.0,0.000156,5]
[408823872,1774311040522,-600.0,0.000156,5]
[408823873,1774311040531,-33845.5174,0.00015622,2]
[408823874,1774311040540,-1000.0,0.00015654,2]
[408823875,1774311040549,-350.0,0.00015671,2]
[408823876,1774311040559,-1300.0,0.000157,5]
[408823877,1774311040568,-3573.95385456,0.000157,2]
[408823878,1774311040577,-1600.0,0.000157,5]
[408823879,1774311040587,-2500.0,0.000157,2]
[408823880,1774311040596,-800.0,0.000157,5]
[408823881,1774311040605,-197.1543,0.000157,2]
[408823882,1774311040615,-4118.234719,0.000157,2]
[408823883,1774311040625,-3573.95385453,0.00015722,2]
[408823884,1774311040634,-893.276,0.00015744,2]
[408823885,1774311040643,-177.763,0.00015744,2]
[408823886,1774311040652,-3573.95385453,0.00015744,2]
[408823887,1774311040662,-3573.95385453,0.00015767,2]
[408823888,1774311040672,-3573.95385453,0.00015789,2]
[408823889,1774311040683,-208.60595171,0.0001579,2]
[408823890,1774311040695,-169.05232168,0.00015799,2]
[408823891,1774311040708,-155.0,0.00015799,2]
[408823892,1774311040725,-5000.0,0.000158,2]
[408823893,1774311040734,-92076.45227537,0.000158,2]
[408823895,1774311040746,-591.07158026,0.000158,2]
[408823897,1774311040759,-644.38,0.000158,2]
[408823902,1774311040796,-1653.37951876,0.000158,2]
[408823904,1774311040807,-274640.12141403,0.000158,2]
[408823908,1774311042813,-500.0,0.00015799,2]
[408823909,1774311042824,-708609.99999946,0.000158,2]
[408823910,1774311042951,-661.24,0.000158,2]
[408823918,1774311045901,-243.49562344,0.00015799,2]
[408823919,1774311045911,-406.51567563,0.000158,2]
[408823937,1774311554163,1230.44,7.333e-05,2]
[408823938,1774311554352,1230.44,7.718e-05,2]
[408823939,1774311554569,1230.44,8.104e-05,2]
[408823940,1774311554765,1230.44,8.49e-05,2]
[408823941,1774311554994,78.25,8.876e-05,2]
[408823942,1774311555021,1152.19,8.876e-05,2]
[408823943,1774311555308,1230.44,9.262e-05,2]
[408823954,1774312163837,-1230.44,9.648e-05,2]
[408823955,1774312163859,-1230.44,0.00010034,2]
[408823956,1774312163880,-1230.44,0.0001042,2]
[408823957,1774312163900,-726.317924,0.00010806,2]
[408823968,1774312231933,-504.122076,0.00010806,2]
[408823969,1774312231943,-1230.44,0.00011192,2]
[408823970,1774312231953,-298.30190221,0.00011337,2]
[408823971,1774312231963,-1230.44,0.00011578,2]
[408823972,1774312231973,-1230.44,0.00011964,2]
[408823973,1774312231982,-1230.44,0.00012349,2]
[408823974,1774312231993,-1200.0,0.00012734,2]
[408823975,1774312232002,-1230.44,0.00012735,2]
[408823976,1774312232012,-166.66,0.00013087,2]
[408823977,1774312232022,-150.0,0.000131,2]
[408823978,1774312232032,-1230.44,0.00013121,2]
[408823979,1774312232041,-300.0,0.00013158,2]
[408823980,1774312232054,-150.0,0.00013292,2]
[408823981,1774312232069,-166.66,0.00013363,2]
[408823982,1774312232078,-2000.0,0.00013377,2]
[408823983,1774312232088,-640.11,0.00013405,2]
[408823984,1774312232098,-5000.01,0.00013429,2]
[408823985,1774312232108,-1230.44,0.00013507,2]
[408823986,1774312232118,-166.66,0.00013638,2]
[408823987,1774312232128,-344.53,0.00013699,2]
[408823988,1774312232138,-161.16,0.00013858,2]
[408823989,1774312232147,-1230.44,0.00013893,2]
[408823990,1774312232156,-166.66,0.00013914,2]
[408823991,1774312232166,-1680.0,0.00014008,2]
[408823992,1774312232175,-150.0,0.00014189,2]
[408823993,1774312232185,-166.66,0.00014189,2]
[408823994,1774312232194,-1230.44,0.00014279,2]
[408823995,1774312232204,-197.144,0.000143,2]
[408823996,1774312232213,-166.66,0.00014465,2]
[408823997,1774312232224,-313.3,0.00014504,2]
[408823998,1774312232234,-1045.71,0.00014504,2]
[408823999,1774312232243,-150.99,0.00014504,2]
[408824000,1774312232253,-1230.44,0.00014665,2]
[408824001,1774312232262,-161.16,0.00014782,2]
[408824002,1774312232272,-200.0,0.00014798,2]
[408824003,1774312232282,-500.0,0.00014905,2]
[408824004,1774312232291,-500.0,0.00015,2]
[408824005,1774312232300,-2000.0,0.00015049,2]
[408824006,1774312232310,-2800.0,0.000153,5]
[408824007,1774312232320,-255.0,0.0001531,2]
[408824008,1774312232330,-20517.73328893,0.00015322,2]
[408824009,1774312232342,-78017.69311107,0.00015322,2]
[408824010,1774312232352,-500.0,0.00015373,2]
[408824011,1774312232363,-500.0,0.00015373,2]
[408824012,1774312232372,-500.0,0.00015373,2]
[408824013,1774312232381,-5600.0,0.000154,5]
[408824014,1774312232391,-363.0,0.00015409,2]
[408824015,1774312232400,-657.28,0.00015412,3]
[408824016,1774312232409,-4834.6024396,0.00015421,2]
[408824017,1774312232419,-350.0,0.00015422,2]
[408824018,1774312232428,-1014.410266,0.00015422,2]
[408824019,1774312232439,-3320.433934,0.00015422,2]
[408824020,1774312232449,-1000.0,0.00015422,2]
[408824021,1774312232459,-5000.0,0.00015422,2]
[408824022,1774312232468,-3603.45537916,0.00015427,2]
[408824023,1774312232477,-220.01419434,0.00015427,2]
[408824024,1774312232486,-152.96986947,0.00015427,2]
[408824025,1774312232495,-4834.60243959,0.00015474,2]
[408824026,1774312232504,-8400.0,0.000155,5]
[408824027,1774312232514,-2866.75794887,0.000155,3]
[408824028,1774312232526,-766.01991102,0.000155,3]
[408824029,1774312232536,-102.34008898,0.00015521,2]
[408824030,1774312232547,-518.54991102,0.00015521,2]
[408824031,1774312232556,-500.0,0.00015521,2]
[408824032,1774312232565,-270.5904036,0.00015521,2]
[408824033,1774312232574,-193.1162662,0.00015521,2]
[408824034,1774312232583,-500.0,0.00015521,2]
[408824035,1774312232593,-500.0,0.00015521,2]
[408824036,1774312232602,-190.10417762,0.00015521,2]
[408824037,1774312232612,-309.89582238,0.00015521,2]
[408824038,1774312232621,-379.26553966,0.00015521,2]
[408824039,1774312232632,-223.62897533,0.00015521,2]
[408824040,1774312232641,-32.13082512,0.00015521,2]
[408824041,1774312232652,-467.86917488,0.00015521,2]
[408824042,1774312232660,-500.0,0.00015521,2]
[408824043,1774312232669,-500.0,0.00015521,2]
[408824044,1774312232678,-461.94079625,0.00015521,2]
[408824045,1774312232689,-500.0,0.00015521,2]
[408824046,1774312232698,-500.0,0.00015521,2]
[408824047,1774312232707,-500.0,0.00015521,2]
[408824048,1774312232716,-322.04529444,0.00015521,2]
[408824049,1774312232725,-310.35209155,0.00015521,2]
[408824050,1774312232738,-189.64790845,0.00015521,2]
[408824051,1774312232749,-500.36769472,0.00015521,2]
[408824052,1774312232759,-182.60346587,0.00015521,2]
[408824053,1774312232768,-506.18326283,0.00015521,2]
[408824054,1774312232777,-500.0,0.00015521,2]
[408824055,1774312232788,-500.0,0.00015521,2]
[408824056,1774312232797,-153.23972663,0.00015521,2]
[408824057,1774312232806,-271.65860523,0.00015521,2]
[408824058,1774312232833,-228.34139477,0.00015521,2]
[408824059,1774312232842,-302.23655068,0.00015521,2]
[408824060,1774312232855,-197.76344932,0.00015521,2]
[408824061,1774312232866,-559.0918451,0.00015521,2]
[408824062,1774312232875,-258.30470558,0.00015521,2]
[408824064,1774312238000,-486.89062689,0.00015521,2]
[408824065,1774312238011,-242.14475866,0.00015521,2]
[408824066,1774312238023,-500.0,0.00015521,2]
[408824067,1774312238032,-567.20509759,0.00015521,2]
[408824068,1774312238043,-500.0,0.00015521,2]
[408824069,1774312238054,-500.0,0.00015521,2]
[408824070,1774312238068,-500.0,0.00015521,2]
[408824071,1774312238077,-500.0,0.00015521,2]
[408824072,1774312238087,-500.0,0.00015521,2]
[408824073,1774312238099,-500.0,0.00015521,2]
[408824074,1774312238110,-500.0,0.00015521,2]
[408824075,1774312238120,-500.0,0.00015521,2]
[408824076,1774312238131,-150.0,0.00015521,2]
[408824077,1774312238141,-150.0,0.00015521,2]
[408824078,1774312238151,-163.0016804,0.00015521,2]
[408824079,1774312238161,-500.0,0.00015521,2]
[408824080,1774312238171,-500.0,0.00015521,2]
[408824081,1774312238181,-500.0,0.00015521,2]
[408824082,1774312238190,-500.0,0.00015521,2]
[408824083,1774312238200,-500.0,0.00015521,2]
[408824084,1774312238210,-411.54747235,0.00015521,2]
[408824085,1774312238221,-500.0,0.00015521,2]
[408824086,1774312238231,-500.0,0.00015521,2]
[408824087,1774312238242,-500.0,0.00015521,2]
[408824088,1774312238252,-500.0,0.00015521,2]
[408824089,1774312238262,-500.0,0.00015521,2]
[408824090,1774312238271,-500.0,0.00015521,2]
[408824091,1774312238281,-500.0,0.00015521,2]
[408824092,1774312238291,-500.0,0.00015521,2]
[408824094,1774312238300,-500.0,0.00015521,2]
[408824095,1774312238311,-500.0,0.00015521,2]
[408824097,1774312238320,-500.0,0.00015521,2]
[408824099,1774312238330,-500.0,0.00015521,2]
[408824101,1774312238339,-500.0,0.00015521,2]
[408824103,1774312238349,-500.0,0.00015521,2]
[408824104,1774312238359,-500.0,0.00015521,2]
[408824105,1774312238368,-500.0,0.00015521,2]
[408824106,1774312238378,-500.0,0.00015521,2]
[408824107,1774312238387,-500.0,0.00015521,2]
[408824108,1774312238396,-500.0,0.00015521,2]
[408824109,1774312238406,-500.0,0.00015521,2]
[408824110,1774312238415,-500.0,0.00015521,2]
[408824113,1774312238425,-501.58960079,0.00015521,2]
[408824116,1774312238434,-500.0,0.00015521,2]
[408824120,1774312238444,-500.0,0.00015521,2]
[408824123,1774312238453,-500.0,0.00015521,2]
[408824125,1774312238462,-500.0,0.00015521,2]
[408824128,1774312238472,-255.86120147,0.00015521,2]
[408824130,1774312238481,-500.0,0.00015521,2]
[408824131,1774312238491,-500.0,0.00015521,2]
[408824133,1774312238500,-370.45763361,0.00015521,2]
[408824135,1774312238510,-500.0,0.00015521,2]
[408824137,1774312238519,-500.0,0.00015521,2]
[408824139,1774312238528,-521.47089513,0.00015521,2]
[408824141,1774312238537,-672.63120487,0.00015521,2]
[408824143,1774312238547,-220.01419434,0.00015522,2]
[408824145,1774312238556,-42787.18563384,0.00015522,2]
[408824147,1774312238568,-4193.8529845,0.00015522,2]
[408824153,1774312238609,-14659.29679057,0.00015522,2]
[408824155,1774312238620,-1597.11863705,0.00015522,2]
[408824157,1774312238631,-1962.3778416,0.00015522,2]
[408824159,1774312238643,-1300.25121089,0.00015522,2]
[408824161,1774312238653,-1905.05167747,0.00015522,2]
[408824164,1774312238665,-284.0433288,0.00015522,2]
[408824237,1774312240419,-1431310.82189528,0.00015522,2]
[408824238,1774312240429,-4834.60243959,0.00015527,2]
[408824239,1774312240439,-500.0,0.00015573,2]
[408824240,1774312240449,-500.0,0.00015573,2]
[408824241,1774312240459,-500.0,0.00015573,2]
[408824242,1774312240468,-500.0,0.00015573,2]
[408824243,1774312240479,-500.0,0.00015573,2]
[408824244,1774312240489,-500.0,0.00015573,2]
[408824245,1774312240499,-500.0,0.00015573,2]
[408824246,1774312240508,-500.0,0.00015573,2]
[408824247,1774312240519,-500.0,0.00015573,2]
[408824248,1774312240528,-387.45023446,0.00015573,2]
[408824249,1774312240537,-500.0,0.00015573,2]
[408824250,1774312240551,-500.0,0.00015573,2]
[408824251,1774312240560,-4834.60243959,0.00015581,2]
[408824252,1774312240570,-259.1052,0.000156,2]
[408824253,1774312240580,-11300.0,0.000156,5]
[408824254,1774312240590,-220.01419434,0.00015616,2]
[408824255,1774312240599,-4834.60243959,0.00015634,2]
[408824256,1774312240609,-164.946081,0.0001564,7]
[408824257,1774312240619,-500.0,0.00015673,2]
[408824258,1774312240628,-1742.23709816,0.0001568,2]
[408824259,1774312240638,-193.11546,0.0001568,7]
[408824260,1774312240648,-436.880612,0.0001568,7]
[408824261,1774312240657,-287.263973,0.0001568,7]
[408824262,1774312240667,-4834.60243959,0.00015687,2]
[408824263,1774312240677,-241.42990407,0.000157,2]
[408824264,1774312240687,-14100.0,0.000157,5]
[408824265,1774312240698,-161.16,0.00015706,2]
[408824266,1774312240709,-220.01419434,0.00015711,2]
[408824267,1774312240720,-4834.60243959,0.0001574,2]
[408824268,1774312240730,-500.0,0.00015773,2]
[408824269,1774312240739,-500.0,0.00015773,2]
[408824270,1774312240753,-500.0,0.00015773,2]
[408824271,1774312240765,-500.0,0.00015773,2]
[408824272,1774312240775,-506.1213296,0.00015773,2]
[408824273,1774312240784,-500.0,0.00015773,2]
[408824274,1774312240795,-500.0,0.00015773,2]
[408824275,1774312240804,-500.0,0.00015773,2]
[408824276,1774312240814,-500.0,0.00015773,2]
[408824277,1774312240823,-500.0,0.00015773,2]
[408824278,1774312240833,-500.0,0.00015773,2]
[408824279,1774312240842,-500.0,0.00015773,2]
[408824280,1774312240851,-500.0,0.00015773,2]
[408824281,1774312240860,-500.0,0.00015773,2]
[408824282,1774312240870,-500.0,0.00015773,2]
[408824283,1774312240880,-500.0,0.00015773,2]
[408824284,1774312240889,-371732.3627538,0.00015787,2]
[408824285,1774312240900,-292.9820743,0.00015787,2]
[408824286,1774312240909,-8162.3982138,0.00015787,2]
[408824287,1774312240919,-160146.9347963,0.00015787,2]
[408824288,1774312240929,-151.0,0.00015787,2]
[408824290,1774312240941,-151.0,0.00015787,2]
[408824291,1774312240952,-151.0,0.00015787,2]
[408824292,1774312240962,-223.987808,0.00015787,2]
[408824293,1774312240972,-151.0,0.00015787,2]
[408824294,1774312240982,-151.0,0.00015787,2]
[408824295,1774312240992,-151.0,0.00015787,2]
[408824296,1774312241002,-151.0,0.00015787,2]
[408824297,1774312241012,-151.0,0.00015787,2]
[408824298,1774312241024,-151.0,0.00015787,2]
[408824299,1774312241034,-151.0,0.00015787,2]
[408824300,1774312241044,-151.0,0.00015787,2]
[408824301,1774312241057,-151.0,0.00015787,2]
[408824302,1774312241069,-167.964343,0.00015787,2]
[408824303,1774312241240,-758.447036,0.00015787,2]
[408824304,1774312241250,-758.447036,0.00015787,2]
[408824305,1774312241259,-758.447036,0.00015787,2]
[408824306,1774312241268,-758.447036,0.00015787,2]
[408824307,1774312241278,-758.447036,0.00015787,2]
[408824308,1774312241287,-758.447036,0.00015787,2]
[408824309,1774312241296,-758.447036,0.00015787,2]
[408824310,1774312241305,-758.447036,0.00015787,2]
[408824311,1774312241314,-151.0,0.00015787,2]
[408824312,1774312241323,-151.0,0.00015787,2]
[408824313,1774312241332,-218.05716,0.00015787,2]
[408824314,1774312241342,-218.05716,0.00015787,2]
[408824315,1774312241351,-218.05716,0.00015787,2]
[408824316,1774312241361,-218.05716,0.00015787,2]
[408824317,1774312241370,-218.05716,0.00015787,2]
[408824318,1774312241380,-218.05716,0.00015787,2]
[408824319,1774312241389,-218.05716,0.00015787,2]
[408824320,1774312241398,-218.05716,0.00015787,2]
[408824321,1774312241408,-4834.60243959,0.00015794,2]
[408824322,1774312241417,-620.89,0.00015795,2]
[408824323,1774312241427,-151.0,0.00015797,2]
[408824324,1774312241436,-500.0,0.00015799,2]
[408824325,1774312241445,-500.0,0.00015799,2]
[408824326,1774312241455,-500.0,0.00015799,2]
[408824327,1774312241463,-500.0,0.00015799,2]
[408824328,1774312241472,-500.0,0.00015799,2]
[408824329,1774312241481,-500.0,0.00015799,2]
[408824330,1774312241500,-500.0,0.00015799,2]
[408824331,1774312241509,-500.0,0.00015799,2]
[408824332,1774312241518,-500.0,0.00015799,2]
[408824333,1774312241528,-500.0,0.00015799,2]
[408824334,1774312241537,-500.0,0.00015799,2]
[408824335,1774312241547,-203.8,0.00015799,2]
[408824336,1774312241557,-500.0,0.00015799,2]
[408824337,1774312241567,-500.0,0.00015799,2]
[408824338,1774312241578,-500.0,0.00015799,2]
[408824339,1774312241589,-500.0,0.00015799,2]
[408824340,1774312241600,-500.0,0.00015799,2]
[408824341,1774312241609,-500.0,0.00015799,2]
[408824342,1774312241620,-500.0,0.00015799,2]
[408824343,1774312241631,-2191.92962496,0.000158,2]
[408824344,1774312241642,-1599.0,0.000158,5]
[408824345,1774312241652,-1863.0,0.000158,5]
[408824346,1774312241661,-500.0,0.000158,2]
[408824347,1774312241670,-2800.0,0.000158,5]
[408824348,1774312241680,-220.01419434,0.00015805,2]
[408824349,1774312241689,-941.909,0.00015818,2]
[408824350,1774312241700,-3603.45537911,0.00015825,2]
[408824351,1774312241710,-177.762,0.0001584,2]
[408824352,1774312241720,-4834.60243959,0.00015847,2]
[408824353,1774312241729,-344.53,0.00015862,2]
[408824354,1774312241739,-833.0,0.00015867,5]
[408824355,1774312241748,-500.0,0.00015899,2]
[408824356,1774312241758,-500.0,0.00015899,2]
[408824357,1774312241768,-442.35771877,0.00015899,2]
[408824358,1774312241777,-500.0,0.00015899,2]
[408824359,1774312241787,-309.33657391,0.00015899,2]
[408824360,1774312241796,-500.0,0.00015899,2]
[408824361,1774312241806,-500.0,0.00015899,2]
[408824362,1774312241815,-500.0,0.00015899,2]
[408824363,1774312241824,-500.0,0.00015899,2]
[408824364,1774312241833,-500.0,0.00015899,2]
[408824365,1774312241843,-500.0,0.00015899,2]
[408824366,1774312241852,-500.0,0.00015899,2]
[408824367,1774312241862,-180.65596028,0.00015899,2]
[408824368,1774312241871,-4834.60243959,0.000159,2]
[408824369,1774312241881,-2800.0,0.000159,5]
[408824370,1774312241891,-195.2405799,0.000159,2]
[408824371,1774312241900,-165.36550232,0.000159,2]
[408824372,1774312241909,-511.85571332,0.000159,2]
[408824373,1774312241919,-220.01419434,0.000159,2]
[408824374,1774312241928,-500.0,0.00015921,2]
[408824375,1774312241938,-1522.0,0.00015933,2]
[408824376,1774312241947,-1522.0,0.00015933,2]
[408824377,1774312241957,-1539.7730814,0.00015933,2]
[408824378,1774312241967,-500.0,0.00015958,2]
[408824379,1774312241977,-158.8898908,0.00015959,2]
[408824380,1774312241987,-4275.8313296,0.00015959,2]
[408824381,1774312241996,-151.0,0.00015959,2]
[408824382,1774312242007,-1522.0,0.0001596,2]
[408824383,1774312242016,-1522.0,0.0001596,2]
[408824384,1774312242026,-1522.0,0.0001596,2]
[408824385,1774312242035,-1522.0,0.0001596,2]
[408824386,1774312242045,-1522.0,0.0001596,2]
[408824387,1774312242056,-1522.0,0.0001596,2]
[408824388,1774312242069,-1522.0,0.0001596,2]
[408824389,1774312242079,-1522.0,0.0001596,2]
[408824390,1774312242088,-1522.0,0.0001596,2]
[408824391,1774312242099,-1522.0,0.0001596,2]
[408824392,1774312242109,-1522.0,0.0001596,2]
[408824393,1774312242120,-1522.0,0.0001596,2]
[408824394,1774312242130,-1522.0,0.0001596,2]
[408824395,1774312242140,-1522.0,0.0001596,2]
[408824396,1774312242150,-1522.0,0.0001596,2]
[408824397,1774312242160,-1522.0,0.0001596,2]
[408824398,1774312242170,-1522.0,0.0001596,2]
[408824399,1774312242179,-1522.0,0.0001596,2]
[408824400,1774312242189,-1522.0,0.0001596,2]
[408824401,1774312242199,-1522.0,0.0001596,2]
[408824402,1774312242209,-500.0,0.00015973,2]
[408824403,1774312242219,-500.0,0.00015999,2]
[408824404,1774312242229,-500.0,0.00015999,2]
[408824405,1774312242239,-251.17943694,0.00015999,2]
[408824406,1774312242249,-1830399.29455414,0.00016,2]
[408824407,1774312242259,-151.0,0.00016,2]
[408824408,1774312242269,-5087.94,0.00016,2]
[408824409,1774312242279,-419.24,0.00016,2]
[408824410,1774312242289,-759.73,0.00016,2]
[408824411,1774312242298,-512.68,0.00016,2]
[408824412,1774312242308,-222.51,0.00016,2]
[408824413,1774312242318,-1210.6,0.00016,2]
[408824414,1774312242328,-444099.3704267,0.00016,2]
[408824415,1774312242374,-615.01979357,0.00016,2]
[408824416,1774312242385,-6840.0,0.00016,2]
[408824417,1774312242608,-793.17383276,0.00016,2]
[408824418,1774312242620,-353.26333986,0.00016,2]
[408824419,1774312242631,-3450.0,0.00016,2]
[408824420,1774312242643,-298.30708932,0.00016,2]
[408824421,1774312242656,-1578.16819138,0.00016,2]
[408824422,1774312242668,-753.75820049,0.00016,2]
[408824434,1774312243612,-1423.0623945,0.00016,2]
[408824435,1774312243623,-361.7524309,0.00016,2]
[408824446,1774312245835,-5547.40013359,0.00016,2]
[408824447,1774312245890,-175.68190004,0.00016,2]
[408824448,1774312245901,-10524.7719,0.00016,2]
[408824449,1774312245915,-3675.03483254,0.00016,2]
[408824457,1774312246416,-752.30137897,0.00016,2]
[408824458,1774312246427,-21053.07053022,0.00016,2]
[408824463,1774313215106,-151.40302505,0.00013,2]
[408824464,1774313371074,-98.59697495,0.00013,2]
[408824465,1774313371094,-311.0,0.00013,2]
[408824466,1774313371117,-230.41425123,0.0001334,2]
[408824475,1774313431927,-817.79588592,0.00013404,2]
[408824476,1774313431939,-314.57995572,0.00013404,2]
[408824477,1774313431951,-367.62415836,0.00013404,2]
[408824478,1774313431960,-200.0,0.0001368,2]
[408824479,1774313431970,-945.9581626,0.00013772,2]
[408824480,1774313432004,-2294.0418374,0.00013772,2]
[408824481,1774313432014,-1386.46,0.00013817,2]
[408824482,1774313432024,-241.0984,0.000139,2]
[408824483,1774313432034,-1200.0,0.00013901,2]
[408824484,1774313432043,-300.0,0.00013901,2]
[408824485,1774313432053,-1200.0,0.00013902,2]
[408824486,1774313432062,-1852.42,0.00013903,2]
[408824487,1774313432071,-607.81,0.00013903,2]
[408824488,1774313432081,-150.0,0.00014,2]
[408824489,1774313432091,-508.0,0.00014,2]
[408824490,1774313432100,-150.0,0.00014299,2]
[408824491,1774313432109,-410.46616149,0.000143,2]
[408824492,1774313432121,-2089.53383851,0.000143,2]
[408824493,1774313432130,-195.0,0.000143,2]
[408824494,1774313432139,-150.93759322,0.000144,2]
[408824495,1774313432148,-152.48246338,0.000144,2]
[408824496,1774313432158,-151.88555061,0.000144,2]
[408824497,1774313432167,-155.88253577,0.000144,2]
[408824498,1774313432178,-154.98961536,0.000144,2]
[408824499,1774313432188,-85.15903612,0.00014473,2]
[408824500,1774313432199,-179.7130049,0.00014473,2]
[408824501,1774313432209,-941.0947289,0.00014473,2]